[Event "FIDE Zonal 4-2 Open 2023"]
[Site "Dimbroko"]
[Date "2023.03.30"]
[Round "7.8"]
[White "De Gondo, Simplice Armel"]
[Black "David Leroy Debblay"]
[Result "1-0"]
[ECO "D34"]
[WhiteElo "2086"]
[BlackElo "1823"]
[Annotator "TA"]
[PlyCount "87"]
[EventDate "2023.03.25"]
[EventType "swiss"]
[EventCountry "IVO"]
[SourceTitle "playchess.com"]
[Source "ChessBase"]
[SourceQuality "1"]
[TimeControl "40/5400+30:1800+30"]

{[%evp 22,87,36,46,166,0,0,22,39,25,31,39,35,36,36,37,65,70,72,64,70,70,85,62,70,62,94,85,74,74,102,70,111,97,134,128,134,131,172,26,12,21,721,703,1104,1096,1236,1177,29964,29964,29958,29961,29968,1551,29978,29977,29981,29976,29984,29985,29983,29983,29983,29979,29979,29980,29973,29973]} 1. d4 {[%emt 0:00:02]} Nf6 {[%emt 0:00:35]} 2. c4 {[%emt 0:00:02]} e6 {[%emt 0:00:12]} 3. Nf3 {[%emt 0:00:24]} d5 {[%emt 0:00:11]} 4. g3 {[%emt 0:00:04]} c5 {[%emt 0:02:07]} 5. cxd5 {[%emt 0:00:22]} exd5 {[%emt 0:00:07]} 6. Bg2 {[%emt 0:00:01]} Be6 {[%emt 0:00:20]} 7. O-O {[%emt 0:00:37]} Nc6 {[%emt 0:00:05]} 8. Nc3 {[%emt 0:00:30]} Be7 {[%emt 0:00:11]} 9. dxc5 {[%emt 0:00:42]} Bxc5 {[%emt 0:00:13]} 10. Bg5 {[%emt 0:00:19]} Be7 {[%emt 0:00:19]} 11. Nd4 {[%emt 0:00:53]} O-O {[%emt 0:00:23]} 12. Rc1 {[%emt 0:04:38][%cal Ba1c1,Bc1c5,Bc5a5][%mdl 32]} Rc8 {[%emt 0:03:28] D34: Tarrasch Defence: 6 g3 Nf6 7 Bg2 Be7.} (12... Qd7 $14) 13. Nxc6 {[%emt 0:17:43]} ({Only move:} 13. Nxe6 $1 $18 fxe6 14. Bh3) 13... bxc6 $11 {[%emt 0:00:24]} 14. Na4 {[%emt 0:00:08]} h6 {[%emt 0:02:46] The position is equal.} 15. Be3 {[%emt 0:00:17]} Qa5 {[%emt 0:03:05]} 16. Bc5 {[%emt 0:03:23]} Bxc5 {[%emt 0:01:19]} 17. Rxc5 {[%emt 0:00:02] [#]} Qd8 $146 {[%emt 0:00:20]} ({Predecessor:} 17... Qb4 18. a3 Qb7 19. b4 Nd7 20. Rc1 a5 21. Qd2 axb4 22. axb4 Rb8 23. Nc5 Nxc5 24. Rxc5 Qb6 25. Rfc1 Rfc8 26. e4 {½-½ Rouast,J (1648)-Verat Fayolle,C (1935) Montigny le Bretonneux Noel op 19th 2018 (6)}) 18. b3 {[%emt 0:01:21]} Qd6 {[%emt 0:08:04]} 19. Qd4 {[%emt 0:07:13]} Rc7 {[%emt 0:00:41]} 20. Rfc1 {[%emt 0:03:33]} Rfc8 {[%emt 0:01:33]} 21. Ra5 {[%emt 0:02:27]} Qe7 {[%emt 0:01:45]} 22. b4 {[%emt 0:01:57]} Bf5 {[%emt 0:03:17]} 23. e3 {[%emt 0:00:50]} Ne4 {[%emt 0:00:57][%cal Bf6e4,Be4d6,Bd6b5][%mdl 32]} 24. Nc5 {[%emt 0:01:45]} Nd6 {[%emt 0:01:11]} 25. Nb3 {[%emt 0:07:05]} Nb5 {[%emt 0:04:00]} 26. Qf4 {[%emt 0:02:48]} Be6 {[%emt 0:05:44]} 27. a3 {[%emt 0:02:19]} g5 {[%emt 0:02:41]} 28. Qe5 {[%emt 0:00:13]} Nd6 {[%emt 0:00:41]} 29. Rac5 {[%emt 0:00:44] White has more active pieces.} Nc4 {[%emt 0:00:39] [#] Prevents Na5.} 30. R1xc4 {[%emt 0:06:05]} dxc4 {[%emt 0:00:36]} ({Don't play} 30... f6 31. Qxc7 Qxc7 32. Rc2 $16) 31. Nd4 {[%emt 0:00:01]} Qd7 $2 {[%emt 0:05:53][%mdl 8192] [#] Loses the game.} (31... a6 $11) 32. Qf6 $1 $18 Qe7 {[%emt 0:14:53]} 33. Qxh6 {[%emt 0:03:23]} f6 {[%emt 0:00:19]} 34. Nxe6 {[%emt 0:00:52]} ({Weaker is} 34. Rxc6 Rxc6 35. Bxc6 Qh7 36. Qxh7+ (36. Qxf6 Rxc6 37. Qxg5+ Kf7 $14) 36... Kxh7 $14) 34... Qxe6 {[%emt 0:01:16]} 35. Rxg5+ {[%emt 0:00:10]} fxg5 {[%emt 0:06:39]} 36. Qxe6+ {[%emt 0:00:02]} Kg7 {[%emt 0:00:11]} 37. Qf5 {[%emt 0:00:42]} (37. Bh3 $142 Rf8 38. Qe5+ Rf6 39. Qxc7+ Rf7 40. Qxc6 a6 41. Qxc4 Rf8 42. Qd5) 37... c5 {[%emt 0:02:43]} 38. Qxg5+ {[%emt 0:00:06] White mates.} Kf8 {[%emt 0:00:07]} 39. b5 {[%emt 0:00:29]} c3 {[%emt 0:00:42]} 40. Qf6+ {[%emt 0:00:04]} Ke8 {[%emt 0:01:41]} 41. Qxc3 {[%emt 0:30:04]} c4 {[%emt 0:30:30]} 42. Bc6+ {[%emt 0:00:02]} Rxc6 {[%emt 0:00:19]} 43. bxc6 {[%emt 0:00:02]} Rxc6 {[%emt 0:00:02]} 44. h4 {[%emt 0:38:06] Weighted Error Value: White=0.19 (very precise) /Black=0.56} 1-0

[Event "FIDE Zonal 4-2 Open 2023"]
[Site "Dimbroko"]
[Date "2023.03.30"]
[Round "7.9"]
[White "Egbe, Kossi Thierry"]
[Black "KONAN KOUASSI AUGUSTIN"]
[Result "1-0"]
[ECO "C01"]
[WhiteElo "1740"]
[BlackElo "1775"]
[Annotator "NA RC COMBH"]
[PlyCount "101"]
[EventDate "2023.03.25"]
[EventType "swiss"]
[EventCountry "IVO"]
[SourceTitle "playchess.com"]
[Source "ChessBase"]
[SourceQuality "1"]
[TimeControl "40/5400+30:1800+30"]

1. e4 {[%emt 0:00:04]} e6 {[%emt 0:05:02]} 2. d4 {[%emt 0:00:49]} c6 {[%emt 0:01:34]} 3. Nf3 {[%emt 0:00:18]} d6 {[%emt 0:05:05]} 4. Bd3 {[%emt 0:00:19]} Nd7 {[%emt 0:00:32]} 5. O-O {[%emt 0:00:22]} e5 {[%emt 0:00:27]} 6. c3 {[%emt 0:00:23]} Ngf6 {[%emt 0:00:29]} 7. Ne1 {[%emt 0:00:45]} g6 {[%emt 0:01:24]} 8. f4 {[%emt 0:00:12]} Qb6 {[%emt 0:00:56]} 9. Nc2 {[%emt 0:00:57]} Bg7 {[%emt 0:00:10]} 10. Kh1 {[%emt 0:00:17]} O-O {[%emt 0:01:00]} 11. Nd2 {[%emt 0:00:32]} exf4 {[%emt 0:08:22]} 12. Nc4 {[%emt 0:00:46]} Qc7 {[%emt 0:01:41]} 13. Bxf4 {[%emt 0:00:15]} Ne8 {[%emt 0:00:20]} 14. N2e3 {[%emt 0:04:59]} b5 {[%emt 0:00:25]} 15. Nd2 {[%emt 0:00:21]} Ndf6 {[%emt 0:00:22]} 16. Qf3 {[%emt 0:01:06]} Nh5 {[%emt 0:02:31]} 17. Bg5 {[%emt 0:02:38]} a6 {[%emt 0:05:12]} 18. Ng4 {[%emt 0:00:36]} f6 {[%emt 0:02:00]} 19. Nh6+ {[%emt 0:01:32]} Kh8 {[%emt 0:01:06]} 20. Be3 {[%emt 0:00:31]} Bxh6 {[%emt 0:02:22]} 21. Bxh6 {[%emt 0:00:52]} Rf7 {[%emt 0:00:31]} 22. g4 {[%emt 0:02:05]} Nhg7 {[%emt 0:00:26]} 23. Qg3 {[%emt 0:02:08]} Qd7 {[%emt 0:01:32]} 24. h3 {[%emt 0:01:39]} Ne6 {[%emt 0:08:05]} 25. Rf2 {[%emt 0:01:12]} g5 {[%emt 0:00:35]} 26. Raf1 {[%emt 0:00:59]} Nf4 {[%emt 0:00:03]} 27. Rxf4 {[%emt 0:00:40]} gxf4 {[%emt 0:00:21]} 28. Bxf4 {[%emt 0:00:40]} h5 {[%emt 0:05:28]} 29. Qh4 {[%emt 0:01:46]} Ng7 {[%emt 0:00:35]} 30. Bh6 {[%emt 0:02:24]} hxg4 31. Rxf6 {[%emt 0:01:59]} g3 {[%emt 0:07:30]} 32. Be3+ {[%emt 0:17:45]} Kg8 {[%emt 0:00:25]} 33. Rh6 Nh5 {[%emt 0:26:55]} 34. Rxh5 {[%emt 0:55:39]} Rh7 {[%emt 0:00:34]} 35. Bh6 {[%emt 0:00:00]} Qe7 {[%emt 0:07:40]} 36. e5 {[%emt 0:00:00]} Qxh4 {[%emt 0:01:46]} 37. Bxh7+ {[%emt 0:00:00]} Kxh7 {[%emt 0:00:09]} 38. Rxh4 {[%emt 0:00:00]} dxe5 {[%emt 0:00:44]} 39. Bf4+ {[%emt 0:00:00]} Kg6 {[%emt 0:05:41]} 40. Bxe5 {[%emt 0:03:00]} Bb7 {[%emt 0:00:00]} 41. Kg2 {[%emt 0:00:00]} c5+ {[%emt 0:27:14]} 42. Kxg3 {[%emt 0:00:00]} cxd4 {[%emt 0:00:15]} 43. Bxd4 {[%emt 0:00:00]} Re8 {[%emt 0:00:30]} 44. Rg4+ {[%emt 0:00:00]} Kh5 {[%emt 0:01:16]} 45. Rg7 {[%emt 0:00:00]} Bd5 {[%emt 0:00:56]} 46. Nf3 {[%emt 0:00:00]} Bxa2 {[%emt 0:01:06]} 47. Ne5 {[%emt 0:00:00]} Bb1 {[%emt 0:00:53]} 48. h4 {[%emt 0:00:00]} Re6 {[%emt 0:00:00]} 49. Rg5+ {[%emt 0:00:00]} Kh6 {[%emt 0:00:00]} 50. Nf7+ {[%emt 0:00:00]} Kh7 {[%emt 0:00:00]} 51. Rg7# {[%emt 0:00:00]} 1-0

[Event "FIDE Zonal 4-2 Open 2023"]
[Site "Dimbroko"]
[Date "2023.03.30"]
[Round "7.10"]
[White "Foday W. Kondoh"]
[Black "Semeko, Lumen Paco"]
[Result "1-0"]
[ECO "C13"]
[WhiteElo "1727"]
[BlackElo "1483"]
[Annotator "NA RC COMBH"]
[PlyCount "112"]
[EventDate "2023.03.25"]
[EventType "swiss"]
[EventCountry "IVO"]
[SourceTitle "playchess.com"]
[Source "ChessBase"]
[SourceQuality "1"]
[TimeControl "40/5400+30:1800+30"]

1. d4 {[%emt 0:00:39]} d5 {[%emt 0:00:02]} 2. Nc3 {[%emt 0:00:15]} Nf6 {[%emt 0:00:14]} 3. Bg5 {[%emt 0:01:07]} e6 {[%emt 0:00:34]} 4. e4 {[%emt 0:00:39]} dxe4 {[%emt 0:03:54]} 5. Bxf6 {[%emt 0:01:59]} Qxf6 {[%emt 0:00:21]} 6. Nxe4 {[%emt 0:00:10]} Qd8 {[%emt 0:00:56]} 7. Nf3 {[%emt 0:00:32]} Nd7 {[%emt 0:00:25]} 8. Bc4 {[%emt 0:02:42]} Be7 {[%emt 0:02:37]} 9. d5 {[%emt 0:00:25]} exd5 {[%emt 0:01:43]} 10. Qxd5 {[%emt 0:00:47]} O-O {[%emt 0:00:41]} 11. Rd1 {[%emt 0:03:53]} Qe8 {[%emt 0:01:44]} 12. Bb3 {[%emt 0:02:49]} Nf6 {[%emt 0:06:11]} 13. Nxf6+ {[%emt 0:01:48]} Bxf6+ {[%emt 0:00:27]} 14. Kf1 {[%emt 0:00:49]} c6 {[%emt 0:03:24]} 15. Qd3 {[%emt 0:01:04]} Bg4 {[%emt 0:01:21]} 16. c3 {[%emt 0:00:45]} Rd8 {[%emt 0:00:17]} 17. Qe3 {[%emt 0:07:57]} Qxe3 {[%emt 0:01:04]} 18. fxe3 {[%emt 0:00:10]} Bxf3 {[%emt 0:02:57]} 19. gxf3 {[%emt 0:02:11]} Rxd1+ {[%emt 0:01:57]} 20. Bxd1 {[%emt 0:00:09]} Rd8 {[%emt 0:00:27]} 21. Ke2 {[%emt 0:00:04]} Rd5 {[%emt 0:00:51]} 22. Bb3 {[%emt 0:01:12]} Rh5 {[%emt 0:02:32]} 23. h3 {[%emt 0:01:58]} Kf8 {[%emt 0:00:38]} 24. f4 {[%emt 0:00:29]} g5 {[%emt 0:02:39]} 25. Kf3 {[%emt 0:02:07]} gxf4 {[%emt 0:01:17]} 26. Kxf4 {[%emt 0:00:22]} Ke7 {[%emt 0:01:49]} 27. e4 {[%emt 0:07:47]} h6 {[%emt 0:01:30]} 28. Ke3 {[%emt 0:08:22]} Rg5 {[%emt 0:06:31]} 29. Bd1 {[%emt 0:09:29]} b5 {[%emt 0:07:16]} 30. Bg4 {[%emt 0:00:53]} Rg8 {[%emt 0:04:11]} 31. Rd1 {[%emt 0:02:53]} Rd8 {[%emt 0:00:09]} 32. Rxd8 {[%emt 0:02:29]} Kxd8 {[%emt 0:00:11]} 33. Kf4 {[%emt 0:00:13]} b4 34. e5 {[%emt 0:06:47]} Bg5+ {[%emt 0:13:09]} 35. Kf5 {[%emt 0:04:36]} bxc3 {[%emt 0:10:08]} 36. bxc3 {[%emt 0:00:06]} Ke7 {[%emt 0:00:25]} 37. Bf3 {[%emt 0:01:01]} Bd2 {[%emt 0:00:48]} 38. c4 {[%emt 0:00:18]} c5 {[%emt 0:00:12]} 39. Ke4 {[%emt 0:00:09]} f6 {[%emt 0:01:58]} 40. Kd5 {[%emt 0:02:13]} Bb4 {[%emt 0:14:10]} 41. e6 {[%emt 0:33:17]} Ba3 {[%emt 0:33:15]} 42. Bg4 {[%emt 0:00:55]} Bb4 {[%emt 0:01:30]} 43. Kc6 {[%emt 0:02:35]} a5 {[%emt 0:03:32]} 44. Kb5 {[%emt 0:01:02]} Kd6 {[%emt 0:00:28]} 45. Ka4 {[%emt 0:00:51]} h5 {[%emt 0:00:00]} 46. Bxh5 {[%emt 0:00:00]} Kxe6 {[%emt 0:00:00]} 47. a3 {[%emt 0:00:00]} Be1 {[%emt 0:00:00]} 48. Kb5 {[%emt 0:00:00]} Kd6 {[%emt 0:00:00]} 49. Bg4 {[%emt 0:00:00]} Bc3 {[%emt 0:00:00]} 50. h4 {[%emt 0:00:00]} Bb2 {[%emt 0:00:00]} 51. a4 {[%emt 0:00:00]} Bc3 {[%emt 0:00:00]} 52. h5 {[%emt 0:00:00]} Bd2 {[%emt 0:00:00]} 53. Bh3 {[%emt 0:00:00]} Ke5 {[%emt 0:00:00]} 54. Kxc5 {[%emt 0:00:00]} f5 {[%emt 0:00:00]} 55. Kb6 {[%emt 0:00:00]} f4 {[%emt 0:00:00]} 56. c5 {[%emt 0:25:32]} Kd5 {[%emt 0:00:32]} 1-0

[Event "FIDE Zonal 4-2 Open 2023"]
[Site "Dimbroko"]
[Date "2023.03.30"]
[Round "7.11"]
[White "AKA JUSTIN JEAN-ROBERT KOUMI"]
[Black "Mambe, Lobognon Anderson Ol"]
[Result "0-1"]
[ECO "B06"]
[WhiteElo "1833"]
[BlackElo "1916"]
[Annotator "TA"]
[PlyCount "106"]
[EventDate "2023.03.25"]
[EventType "swiss"]
[EventCountry "IVO"]
[SourceTitle "playchess.com"]
[Source "ChessBase"]
[SourceQuality "1"]
[TimeControl "40/5400+30:1800+30"]

{[%evp 9,105,50,75,42,72,24,39,31,67,64,75,69,60,41,43,49,66,27,62,34,42,19,33,23,57,41,43,34,31,24,45,16,52,59,99,106,104,97,143,95,114,93,101,37,151,138,133,141,179,175,227,183,234,231,243,206,271,279,387,387,401,407,399,376,409,399,409,385,418,397,1015,975,1429,477,1370,540,542,546,520,513,539,0,0,0,0,-248,0,-20,0,0,0,-55,-19,-756,-718,-29997,-29998,-29999]} 1. e4 {[%emt 0:00:02]} g6 {[%emt 0:00:06]} 2. d4 {[%emt 0:00:14]} Bg7 {[%emt 0:00:03]} 3. Nc3 {[%emt 0:00:54]} d6 {[%emt 0:00:05]} 4. Be3 {[%emt 0:00:47]} c6 {[%emt 0:00:55]} 5. Qd2 {[%emt 0:01:22]} a5 {[%emt 0:01:38]} 6. Be2 {[%emt 0:01:40] B06: Modern Defence.} Nf6 {[%emt 0:00:16]} 7. h3 {[%emt 0:01:50]} (7. a4 $16) 7... Nbd7 {[%emt 0:02:32] [#]} 8. Nf3 $146 {[%emt 0:00:51] White is slightly better.} ({Predecessor:} 8. Bf3 Qc7 9. Nge2 b5 10. a3 O-O 11. O-O e5 12. d5 cxd5 13. Nxd5 Nxd5 14. Qxd5 {0-1 Franco Valencia,A-Agnello,S Pan American-ch U14 Girls 2001 (6)}) 8... a4 {[%emt 0:00:39]} 9. e5 {[%emt 0:02:48]} Nd5 {[%emt 0:01:06]} 10. Nxd5 {[%emt 0:00:43]} cxd5 {[%emt 0:00:01]} 11. exd6 {[%emt 0:00:59]} exd6 {[%emt 0:00:57]} 12. O-O {[%emt 0:00:46]} O-O {[%emt 0:00:23]} 13. Bf4 {[%emt 0:01:16]} Qb6 {[%emt 0:01:17]} 14. c3 {[%emt 0:01:13]} Nf6 {[%emt 0:00:17]} 15. Bd3 {[%emt 0:01:09]} Ne4 {[%emt 0:00:34]} 16. Qc2 {[%emt 0:01:46]} Re8 {[%emt 0:00:58]} 17. Rfe1 {[%emt 0:01:24][%cal Rd3e4]} f5 {[%emt 0:00:59]} 18. Nd2 {[%emt 0:01:50]} Bd7 {[%emt 0:01:03]} 19. f3 {[%emt 0:01:30]} Nf6 {[%emt 0:00:23]} (19... Rf8 {is interesting.} 20. Rab1 Rac8 21. fxe4 fxe4 22. Bxe4 Bxd4+ 23. Kh2 Rxf4 24. Bxd5+ Kh8) 20. Rxe8+ {[%emt 0:02:38]} Bxe8 {[%emt 0:00:36]} 21. Re1 {[%emt 0:01:02]} Bf7 {[%emt 0:00:07]} 22. g4 {[%emt 0:05:27]} (22. Re7 a3 $14) 22... fxg4 {[%emt 0:00:38]} 23. hxg4 {[%emt 0:00:24]} (23. fxg4 a3 $11) 23... Qc6 {[%emt 0:01:58]} (23... Ne8 $142) 24. Nf1 {[%emt 0:02:36]} (24. Re7 Nd7 $14) (24. Nb1 $142) 24... a3 {[%emt 0:04:39]} 25. b3 {[%emt 0:02:42]} Rc8 {[%emt 0:00:25] [#]} 26. Bd2 {[%emt 0:00:40]} (26. Rc1 $1 $16) 26... Nd7 {[%emt 0:00:27]} ({Better is} 26... b5 $1 $14) 27. Qc1 $16 {[%emt 0:02:08]} (27. Re7 Bf6 28. Rxf7 Kxf7 $17) 27... Ra8 {[%emt 0:01:40]} 28. Ng3 {[%emt 0:01:31]} (28. Re7 $6 b5 $14) 28... Qc7 {[%emt 0:01:32]} 29. Kg2 {[%emt 0:01:15]} Nf8 {[%emt 0:01:02]} (29... b6 {is a better defense.} 30. f4 (30. Re7 Bf8 $16) 30... b5) 30. Rh1 {[%emt 0:06:02]} Qa5 {[%emt 0:01:38]} (30... Qc8 $142 31. Qe1 Qd7) 31. f4 $18 {[%emt 0:04:14][%cal Bf3f4,Bf4f5,Bf5f6][%mdl 32]} Rc8 {[%emt 0:01:06]} 32. Qe1 {[%emt 0:01:15]} Re8 {[%emt 0:00:30]} 33. Qf2 {[%emt 0:00:32]} b5 {[%emt 0:00:30]} 34. f5 {[%emt 0:02:04]} Qb6 {[%emt 0:00:35]} 35. f6 {[%emt 0:04:08]} Bh8 {[%emt 0:00:47]} 36. Ne2 {[%emt 0:01:20]} Re6 {[%emt 0:01:10]} 37. g5 {[%emt 0:00:55][%cal Bg4g5,Bg5h6][%mdl 32]} Qc6 {[%emt 0:03:42] Black is weak on the dark squares} 38. Nf4 {[%emt 0:00:56]} Re8 {[%emt 0:00:51]} 39. Qh4 {[%emt 0:00:19][%cal Of4g6]} h5 $2 {[%emt 0:00:32]} (39... Qd7 40. Kf2 h5 41. gxh6 Nh7) 40. gxh6 {[%emt 0:01:55]} Kh7 {[%emt 0:01:19]} 41. Kf2 {[%emt 0:32:29]} (41. Nh3 $142 {Threatening mate with Ng5+.} Ne6 42. Re1) 41... b4 {[%emt 0:37:11]} (41... Re4 $142 42. Rg1 Qc7 43. Bxe4 (43. Bxb5 Ne6 $18) 43... dxe4) 42. Rg1 {[%emt 0:05:28]} (42. Nh3 $142 {Intending Ng5+ and mate.} Ne6 43. cxb4) 42... Re4 {[%emt 0:03:26]} 43. Bxe4 {[%emt 0:03:04]} dxe4 {[%emt 0:00:08]} 44. c4 {[%emt 0:01:07]} (44. cxb4 Qc2 45. Ke2 Qxa2 $11) 44... d5 {[%emt 0:02:30]} 45. c5 $2 {[%emt 0:01:37]} (45. Bxb4 Bxf6 46. Qg3 (46. Rg5 $2 dxc4 47. Bxa3 cxb3 $19) 46... Bxd4+ 47. Kg2 Bxg1 48. Bxf8 Bd4 $11) (45. Nxd5 $18 Bxd5 46. cxd5 Qxd5 47. Ke3 (47. Bxb4 Qxd4+ 48. Kg2 Qxb4 $17)) 45... Bxf6 $11 (45... Qxf6 $2 46. Qxf6 Bxf6 47. c6 $18 (47. Bxb4 Bxd4+ 48. Kg2 Bxg1 $14)) 46. Qg3 {[%emt 0:01:58] Black must now prevent Qe3.} Bxd4+ {[%emt 0:00:44]} 47. Be3 $2 {[%emt 0:00:16] [#]} (47. Ke2 $1 $11) 47... Qxc5 $2 {[%emt 0:01:01]} (47... Be5 $1 $19 {Strongly threatening ...d4.} 48. Rf1 (48. Qg5 $2 Bf6 $19) 48... d4) 48. Re1 {[%emt 0:03:24]} Qc3 {[%emt 0:03:38] Hoping for ...Be5. Dancing on a razor blade.} (48... Ne6 $5 {[%cal Rd4e3]} 49. Rf1 Qd6 $15) 49. Bxd4 {[%emt 0:02:27]} Qxd4+ {[%emt 0:01:42]} 50. Qe3 {[%emt 0:00:46]} ({White should try} 50. Kg2 $1 $11) 50... Qf6 $36 {[%emt 0:00:58][%mdl 2048] White is under pressure.} 51. Ke2 $2 {[%emt 0:00:55][%mdl 8192]} (51. Kg1 $11) 51... g5 $19 {[%emt 0:03:24]} (51... Kxh6 52. Nxd5+ g5 53. Nxf6 Ne6 54. Qxe4 Kg7 55. Qe5 Kg6 56. Rh1) 52. Nh3 {[%emt 0:01:41]} Bh5+ {[%emt 0:00:17]} 53. Kd2 {[%emt 0:01:40]} Qb2# {[%emt 0:52:05] Never resign too early! An entertaining game by Mambe.   Weighted Error Value: White=0.73/Black=0.32} 0-1

[Event "FIDE Zonal 4-2 Open 2023"]
[Site "Dimbroko"]
[Date "2023.03.30"]
[Round "8.1"]
[White "Daniel Kolliemelen"]
[Black "Ortega Amarelle, Mariano"]
[Result "0-1"]
[ECO "D00"]
[WhiteElo "1805"]
[BlackElo "2472"]
[Annotator "TA"]
[PlyCount "76"]
[EventDate "2023.03.25"]
[EventType "swiss"]
[EventCountry "IVO"]
[SourceTitle "playchess.com"]
[Source "ChessBase"]
[SourceQuality "1"]
[TimeControl "40/5400+30:1800+30"]

{[%evp 9,76,-23,-12,-25,9,-56,-53,-54,-64,-112,-102,-87,-91,-109,-81,-90,-55,-81,-85,-93,-86,-113,-117,-120,-133,-158,-165,-263,-240,-260,-169,-153,-139,-169,-184,-315,-293,-306,-294,-391,-370,-417,-417,-417,-417,-444,-435,-444,-444,-444,-444,-444,-444,-444,-444,-437,-422,-504,-504,-504,-502,-490,-487,-29977,-29978,-29976,-29977,-29977,-29976]} 1. d4 {[%emt 0:00:43]} Nf6 {[%emt 0:00:12]} 2. e3 {[%emt 0:02:18]} d5 {[%emt 1:31:18]} 3. f4 {[%emt 0:00:18]} Bf5 {[%emt 0:00:00]} 4. Nf3 {[%emt 0:00:22]} e6 {[%emt 0:00:00]} 5. Bd3 {[%emt 0:00:20]} Bd6 {[%emt 0:00:00]} 6. O-O {[%emt 0:00:53]} c5 {[%emt 0:00:00]} 7. c3 {[%emt 0:00:35]} ({White should try} 7. Bxf5 $11 exf5 8. Qd3) 7... O-O $15 {[%emt 0:00:00]} 8. Qe2 {[%emt 0:00:16] Black is slightly better.} Nc6 {[%emt 0:00:00][%cal Bb8c6,Bc6a5,Ba5c4][%mdl 32]} 9. Nbd2 {[%emt 0:00:14]} (9. b3 $15 {is superior.}) 9... Bxd3 $17 {[%emt 0:00:00]} 10. Qxd3 {[%emt 0:01:12]} cxd4 {[%emt 0:00:00]} 11. cxd4 {[%emt 0:04:53]} Rc8 {[%emt 0:00:00]} 12. a3 {[%emt 0:01:41]} Na5 {[%emt 0:00:00]} 13. Ne5 {[%emt 0:03:38]} Qc7 {[%emt 0:00:00] Black keeps a firm grip on the game.} 14. b4 {[%emt 0:05:37]} Nc4 {[%emt 0:00:00]} 15. Nexc4 {[%emt 0:01:53]} dxc4 {[%emt 0:00:00]} 16. Qc2 {[%emt 0:01:16]} b5 {[%emt 0:00:00]} 17. g3 {[%emt 0:00:41]} a5 {[%emt 0:00:00]} 18. Rb1 {[%emt 0:01:32]} (18. bxa5 $142 Qxa5 19. e4) 18... axb4 $19 {[%emt 0:00:00]} 19. axb4 {[%emt 0:00:27]} Nd5 {[%emt 0:00:00]} 20. Ne4 {[%emt 0:00:58]} Nxb4 {[%emt 0:00:00]} ({Don't take} 20... Bxb4 21. Ng5 g6 22. e4 $14) 21. Qg2 {[%emt 0:00:40] Hoping for Nxd6.} Be7 {[%emt 0:00:00]} 22. Ba3 {[%emt 0:02:22]} (22. Bd2 {keeps fighting.} Nd5 23. Rxb5) 22... Nd5 {[%emt 0:00:00][%csl LRa3,LRe3][%mdl 64] [#] Discovered Attack} 23. Bxe7 {[%emt 0:01:21]} Qxe7 {[%emt 0:00:00]} 24. Rfe1 {[%emt 0:00:19]} b4 {[%emt 0:00:00]} 25. Nc5 {[%emt 0:00:36]} Rxc5 {[%emt 0:00:00]} 26. dxc5 {[%emt 0:02:20]} Qxc5 {[%emt 0:00:00] White is weak on the light squares} 27. Qf2 {[%emt 0:00:57]} f5 {[%emt 0:00:00]} 28. e4 {[%emt 0:02:12]} Qxf2+ {[%emt 0:00:00]} 29. Kxf2 {[%emt 0:01:08]} fxe4 {[%emt 0:00:00]} 30. Rxe4 {[%emt 0:00:31]} Nc3 {[%emt 0:00:00][%csl LRb1,LRe4]} 31. Rxc4 {[%emt 0:00:17]} Nxb1 {[%emt 0:00:00]} 32. Rxb4 {[%emt 0:00:11][%mdl 4096] Endgame KRN-KR} Nc3 {[%emt 0:00:00]} 33. Rb7 {[%emt 0:00:36]} e5 {[%emt 0:00:00]} 34. Rc7 {[%emt 0:00:40]} Nd5 {[%emt 0:00:00]} 35. Rc5 {[%emt 0:01:03]} Nf6 {[%emt 0:00:00] ( -> ...Ne4+)} 36. h3 {[%emt 0:00:42] [#]} (36. Ke2 $19 exf4 37. gxf4) 36... Ne4+ {[%emt 0:00:00] Black mates.} 37. Ke3 {[%emt 0:03:03]} Nxc5 {[%emt 0:00:00]} 38. fxe5 {[%emt 0:00:44]} Re8 {[%emt 0:00:00] Weighted Error Value: White=0.51/Black=0.07 (flawless)} 0-1